Cogmind - Beta 12 @@@ ROGUE MODE // 2023.09.09 @ 00:16:53 Player: 0Z-4NL Result: Self-destructed Performance ------------- Evolutions (7) 3500 Regions Visited (24) 4800 Robots Destroyed (243) 1215 Value Destroyed (10739) 10739 Prototype IDs (34) 680 Alien Tech Used (0) 0 Bonus (6569) 6569 TOTAL SCORE: 27503 Bonus ------- High Alert Combat Kills 2316 Follower Combat Kills 1634 Entered Garrisons 1000 Used RIF Installer 2500 Aligned with FarCom 300 Friendly Fire -1181 Cogmind --------- Core Integrity 1147/1300 Matter 300/300 Energy 100/100 System Corruption 0% Temperature Cool (0) Movement Treading (152) Location -3/Research Parts ------- > --- POWER (2) -------- (None) > --- PROPULSION (6) --- Biometal Heavy Treads Advanced Heavy Siege Treads > --- UTILITY (10) ----- (None) > --- WEAPON (3) ------- Heavy Machine Gun > --- INVENTORY (5) ---- Xenon Bombardment Thruster Huge Storage Unit Advanced Shield Generator High-powered Tractor Beam Peak State ------------ > --- POWER ------------ Reinforced Deuterium Engine Hybrid Antimatter Reactor > --- PROPULSION ------- Biometal Heavy Treads Biometal Heavy Treads > --- UTILITY ---------- Huge Storage Unit Advanced Gravity Neutralizer Advanced Targeting Computer Advanced Kinecellerator Improved Medium Armor Plating Improved Medium Armor Plating Relay Coupler [NC] Relay Coupler [Grunt] Relay Coupler [Sentry] Relay Coupler [Behemoth] > --- WEAPON ----------- Heavy Assault Cannon Plasma Lance > --- INVENTORY -------- Advanced Heavy Siege Treads Armored Wheel Armored Huge Wheel Advanced Cooling System Coolant Injector Matter Compressor Modified TNC Improved Medium Armor Plating Relay Coupler [NC] Relay Coupler [Swarmer] Relay Coupler [Cutter] Relay Coupler [Brawler] Relay Coupler [Demolisher] Relay Coupler [Specialist] Relay Coupler [Hunter] Relay Coupler [Heavy] Heavy Plasma Cannon Bore Cannon Heavy Gauss Cannon Mini Grenade Launcher Heavy Missile Launcher Remote Datajack Improved Remote Datajack [Rating: 115] Favorites ----------- Power Neutrino Core Engine Reinforced Deuterium Engine Power Core Neutrino Core Reactor Light Antimatter Reactor Propulsion Armored Huge Wheel Treads Biometal Heavy Treads Leg Aluminum Leg Wheel Armored Huge Wheel Utility Improved Medium Armor Plating Device Improved Transmission Jammer Storage Huge Storage Unit Processor Advanced Targeting Computer Hackware Relay Coupler [NC] Protection Improved Medium Armor Plating Weapon Advanced Beam Cannon Energy Gun Quantum Rifle Energy Cannon Advanced Beam Cannon Ballistic Gun Gauss Rifle Ballistic Cannon Heavy Linear Accelerator Launcher Heavy Missile Launcher Special Weapon Remote Datajack Impact Weapon Mace Slashing Weapon Katana Piercing Weapon Plasma Lance Special Melee Weapon Improved Datajack Build | -11 -10 -10 -10 -9 -8 -8 -8 -8 -7 -7 -6 -6 -6 -6 -5 -5 -4 -4 -4 -4 -4 -4 -3 -3 ------- Run | Jun Mat Min Exi Min Mat Gar Mat Gar Fac Gar Fac Was Fac Gar Fac Gar Fac Was Fac Upp Upp War Pro Res Slots Evolved 14 | . . . . . 4 . . . 2 . 2 . . . 2 . 2 . . . . . . 2 Power 1 | . . . . . . . . . . . . . . . 1 . . . . . . . . . Propulsion 4 | . . . . . 1 . . . . . . . . . . . 1 . . . . . . 2 Utility 8 | . . . . . 2 . . . 2 . 2 . . . 1 . 1 . . . . . . . Weapon 1 | . . . . . 1 . . . . . . . . . . . . . . . . . . . Parts Attached 371 | 2 14 . 3 5 28 26 59 24 19 17 13 9 6 30 12 51 24 4 16 . 2 . 7 . Power 12 | . 2 . . . . 1 2 1 . . . . . . 1 2 . 1 1 . 1 . . . Engine 7 | . 2 . . . . 1 2 . . . . . . . 1 1 . . . . . . . . Core 1 | . . . . . . . . 1 . . . . . . . . . . . . . . . . Reactor 4 | . . . . . . . . . . . . . . . . 1 . 1 1 . 1 . . . Propulsion 28 | 2 . . 3 1 6 . 4 1 . 2 . . . . . 3 2 . 1 . 1 . 2 . Treads 13 | 2 . . 2 . 4 . . . . . . . . . . . 2 . . . 1 . 2 . Leg 1 | . . . . . . . . . . 1 . . . . . . . . . . . . . . Wheel 14 | . . . 1 1 2 . 4 1 . 1 . . . . . 3 . . 1 . . . . . Hover . | . . . . . . . . . . . . . . . . . . . . . . . . . Flight . | . . . . . . . . . . . . . . . . . . . . . . . . . Utility 116 | . 4 . . 2 14 6 21 4 9 1 6 5 1 7 1 17 6 2 6 . . . 4 . Device 54 | . 1 . . 1 7 3 15 3 6 . 2 2 . 2 . 5 3 . 2 . . . 2 . Storage 8 | . 2 . . 1 2 . . . . . . . . 1 . . . 1 1 . . . . . Processor 7 | . 1 . . . 2 . . . 2 . . . . . . 1 1 . . . . . . . Hackware 17 | . . . . . 1 . 1 1 . . . 1 . 3 . 7 1 . 2 . . . . . Protection 30 | . . . . . 2 3 5 . 1 1 4 2 1 1 1 4 1 1 1 . . . 2 . Artifact . | . . . . . . . . . . . . . . . . . . . . . . . . . Weapon 215 | . 8 . . 2 8 19 32 18 10 14 7 4 5 23 10 29 16 1 8 . . . 1 . Energy Gun 5 | . 1 . . . 1 . 1 . . . . 1 . . 1 . . . . . . . . . Energy Cannon 20 | . 5 . . 1 . 7 2 2 1 1 . . . . . . 1 . . . . . . . Ballistic Gun 8 | . . . . . 3 1 2 1 . . . . . . . . . . . . . . 1 . Ballistic Cannon 53 | . . . . . . 3 11 4 4 4 1 1 . 9 1 12 1 . 2 . . . . . Launcher 39 | . 2 . . 1 . 7 4 6 2 6 4 . 1 4 . 1 1 . . . . . . . Special Weapon 28 | . . . . . . . . 1 . . 1 1 1 3 4 7 7 1 2 . . . . . Impact Weapon 3 | . . . . . 3 . . . . . . . . . . . . . . . . . . . Slashing Weapon 46 | . . . . . 1 1 10 3 3 3 1 1 3 7 4 9 . . . . . . . . Piercing Weapon 10 | . . . . . . . . . . . . . . . . . 6 . 4 . . . . . Special Melee Weapon 3 | . . . . . . . 2 1 . . . . . . . . . . . . . . . . Unidentified Prototypes 8 | . 1 . . . 1 . 1 . . . . . . . . 2 3 . . . . . . . Parts Lost 18 | . . . . . 1 . . . 1 1 1 . . . . 1 . 1 3 . 4 . 5 . Power 4 | . . . . . . . . . . . . . . . . . . 1 1 . . . 2 . Propulsion . | . . . . . . . . . . . . . . . . . . . . . . . . . Utility 12 | . . . . . 1 . . . 1 1 1 . . . . 1 . . 2 . 3 . 2 . Weapon 2 | . . . . . . . . . . . . . . . . . . . . . 1 . 1 . Highest Loss Streak 4 | . . . . . 1 . . . 1 1 1 . . . . 1 . 1 2 . 3 . 4 . To Critical Strikes . | . . . . . . . . . . . . . . . . . . . . . . . . . Average Slot Usage (%) 87 | . 94 100 100 100 94 90 89 89 91 91 92 91 86 85 84 87 83 77 81 84 66 63 66 14 Engine 4 | . 14 14 14 14 9 9 9 4 . . . . . . 5 5 5 2 . . . . . . Core 2 | . . . . . . . . 4 7 7 6 6 6 6 5 2 . . . . . . . . Reactor 1 | . . . . . . . . . . . . . . . . 1 5 5 7 5 7 10 8 . Treads 4 | . 28 28 25 17 8 . . . . . . . . . . . 9 10 7 5 4 5 5 9 Wheel 10 | . . . 2 10 13 18 18 18 15 14 13 13 13 13 11 11 . . 2 5 5 5 4 . Device 13 | . 6 14 14 14 15 9 11 5 20 23 20 20 20 16 17 13 10 7 7 10 10 10 18 . Storage 7 | . 14 14 14 14 9 9 9 9 7 7 6 6 6 6 11 5 5 5 5 5 5 5 4 . Processor 5 | . 2 . . . 8 9 9 9 7 7 6 6 6 6 5 5 5 5 3 . . . . . Hackware 7 | . . . . . . . . 3 . . . 5 6 10 5 16 21 21 28 31 20 15 13 . Protection 7 | . . . . . 2 8 6 9 8 7 18 13 13 10 7 9 9 9 5 5 5 5 4 . Energy Cannon 6 | . 24 28 28 27 18 17 2 8 7 7 6 . . . . . . . . . . . . . Ballistic Gun 1 | . . . . . 5 . 7 . . . . . . . . . . . . . . . . 4 Ballistic Cannon 4 | . . . . . . 1 11 4 6 8 2 1 6 9 5 7 5 5 5 5 5 5 4 . Launcher 1 | . . . . . . 5 1 7 . 4 . 6 . . . . . . . . . . . . Special Weapon 1 | . . . . . . . . . . . 3 4 1 . 1 1 2 4 3 5 . . . . Slashing Weapon 2 | . . . . . 1 2 4 3 3 1 5 1 4 2 2 1 . . . . . . . . Naked Turns 17 | . . . . . . . . . . . . . . . . . . . . . . . 17 . Heaviest Build 172 | 11 34 34 34 94 101 108 114 124 129 130 139 141 142 154 172 172 153 145 135 60 65 65 73 5 Greatest Support 155 | 40 40 40 40 40 44 44 44 40 40 40 40 40 40 40 40 40 150 150 150 75 28 28 155 3 Greatest Overweight (x) 6 | . . . 2 5 6 2 3 3 3 4 3 3 3 3 4 4 1 . 2 2 2 2 2 1 Average Overweight (x) 2 | . . . . 2 3 2 2 2 2 2 3 3 3 3 3 3 . . . 1 1 2 1 1 Largest Inventory Capacity 25 | 8 15 15 15 25 25 25 25 25 25 25 25 25 25 25 25 25 25 25 25 15 15 15 15 5 Average Capacity 22 | 8 9 15 15 19 24 25 25 25 25 25 25 25 25 25 25 25 25 24 20 15 15 15 14 5 Most Carried 25 | 6 10 13 15 20 25 25 25 25 25 25 25 25 25 25 24 25 25 25 15 12 13 13 12 4 Average Carried 21 | 6 8 11 14 16 22 24 24 24 24 24 24 24 24 24 23 24 24 16 13 12 12 13 10 3 Final Capacity 25 | 8 15 15 15 25 25 25 25 25 25 25 25 25 25 25 25 25 25 25 15 15 15 15 5 5 Final Carried 25 | 6 10 13 15 20 25 25 25 25 25 25 24 25 25 25 23 25 25 11 12 12 13 13 2 4 Class Distribution -------------------- 41% | Mutant 17% | Botlord-Mutant 14% | Bothacker-Mutant 9% | Skirmisher 6% | Infiltrator-Mutant Dominant Class ---------------- Mutant | -10/Materials Mutant | -10/Mines Mutant | -10/Exiles Mutant | -9/Mines Skirmisher | -8/Materials Mutant | -8/Garrison Mutant | -8/Materials Bothacker-Mutant | -8/Garrison Bothacker-Mutant | -7/Factory Mutant | -7/Garrison Mutant | -6/Factory Infiltrator-Mutant | -6/Waste Infiltrator-Mutant | -6/Factory Bothacker-Mutant | -6/Garrison Bothacker-Mutant | -5/Factory Botlord-Mutant | -5/Garrison Botlord-Mutant | -4/Factory Botlord-Mutant | -4/Waste Botlord-Mutant | -4/Factory Botlord-Mutant | -4/Upper Caves Mutant | -4/Upper Caves Mutant | -4/Warlord Mutant | -3/Proximity Caves Mutant | -3/Research Resources | -11 -10 -10 -10 -9 -8 -8 -8 -8 -7 -7 -6 -6 -6 -6 -5 -5 -4 -4 -4 -4 -4 -4 -3 -3 ----------- Run | Jun Mat Min Exi Min Mat Gar Mat Gar Fac Gar Fac Was Fac Gar Fac Gar Fac Was Fac Upp Upp War Pro Res Matter Collected 8980 | 220 201 206 . 93 346 472 1052 369 478 428 236 140 112 1049 . 1660 766 . 647 76 196 . 233 . Remotely 1883 | . . . . . . 198 766 . 272 428 219 . . . . . . . . . . . . . Salvage Created 7656 | . 331 40 . 64 424 669 1127 379 529 513 508 149 . 612 6 831 419 . 582 77 138 . 258 . Parts 452 | . 14 6 . 13 22 46 64 30 27 33 35 7 . 34 . 42 19 . 40 . 10 . 10 . Haulers Intercepted 7 | . 2 . . . 2 . 2 . 1 . . . . . . . . . . . . . . . Recyclers Shooed 4 | . . . . . 1 . 2 . . . 1 . . . . . . . . . . . . . Parts Field Recycled . | . . . . . . . . . . . . . . . . . . . . . . . . . Retrieved Matter . | . . . . . . . . . . . . . . . . . . . . . . . . . Parts Self-Destructed 22 | . . . . . . . . . . . . . . . . . . . . . 14 . 8 . Prevented . | . . . . . . . . . . . . . . . . . . . . . . . . . Kills | -11 -10 -10 -10 -9 -8 -8 -8 -8 -7 -7 -6 -6 -6 -6 -5 -5 -4 -4 -4 -4 -4 -4 -3 -3 ------- Run | Jun Mat Min Exi Min Mat Gar Mat Gar Fac Gar Fac Was Fac Gar Fac Gar Fac Was Fac Upp Upp War Pro Res Combat Hostiles Destroyed 175 | . 7 . . 4 5 21 22 18 8 19 4 . . 21 . 27 2 . 7 . 3 . 7 . Melee 3 | . . . . . . . . . 1 . . . . 1 . . . . . . . . 1 . Guns 7 | . . . . . 1 2 4 . . . . . . . . . . . . . . . . . Cannons 85 | . 4 . . . 4 6 6 7 3 4 1 . . 11 . 21 2 . 7 . 3 . 6 . AOE 80 | . 3 . . 4 . 13 12 11 4 15 3 . . 9 . 6 . . . . . . . . Classes Destroyed 21 | . 2 2 . 2 3 2 4 . 1 . . 1 . . 1 2 . . 1 . . . . . Worker 8 | . . . . . . . 1 . 2 . . . . . . . 2 . 3 . . . . . Builder 17 | . . 1 . . . . 4 . 2 . 4 . . . . . 3 . 3 . . . . . Tunneler 4 | . . 1 . 2 . . . . . . . . . . . . . . 1 . . . . . Hauler 7 | . 2 . . . 2 . 2 . 1 . . . . . . . . . . . . . . . Recycler 16 | . . . . . 1 . 5 . 3 . 3 . . . . . 2 . 2 . . . . . Watcher 8 | . . . . . . . 4 . . . . . . 1 . . 1 . 2 . . . . . Swarmer 66 | . . . . 4 . 7 5 10 4 9 3 . . 10 . 5 . . 5 . . . 4 . Cutter 1 | . . . . . . . . . . . . . . . . 1 . . . . . . . . Grunt 55 | . 7 . . . 1 8 11 2 1 7 . . . 5 . 11 2 . . . . . . . Brawler 2 | . . . . . . . 1 1 . . . . . . . . . . . . . . . . Duelist 4 | . . . . . 1 . 1 1 . 1 . . . . . . . . . . . . . . Protector 1 | . . . . . . . 1 . . . . . . . . . . . . . . . . . Sentry 27 | . . . . . 3 4 3 4 2 1 . . . 5 . 3 . . . . 1 . 1 . Specialist 1 | . . . . . . 1 . . . . . . . . . . . . . . . . . . Hunter 6 | . . . . . . 1 . . . 1 . . . 2 . . . . . . . . 2 . Programmer 11 | . . . . . . . . . 1 . 1 . . . . 5 . . 2 . 2 . . . Heavy 1 | . . . . . . . . . . . . . . . . . . . 1 . . . . . Executioner 2 | . . . . . . . . . . . . . . . . 2 . . . . . . . . Zionite 1 | . . . . 1 . . . . . . . . . . . . . . . . . . . . Surgeon 1 | . . . . . . . . . . . . . . . 1 . . . . . . . . . Thug 1 | . . . . . . . . . . . . . . 1 . . . . . . . . . . Savage 1 | . . . . . . . . . . . . . . 1 . . . . . . . . . . Martyr 2 | . . . . . . . . . . . . 2 . . . . . . . . . . . . Best Kill Streak 13 | . 3 2 . 4 3 4 13 5 6 6 3 . . 7 . 10 5 . 6 . 2 . 3 . Combat Bots Only 10 | . 3 . . 4 3 4 9 5 3 6 3 . . 7 . 10 2 . 4 . 2 . 3 . Max Kills in Single Turn 6 | . 1 1 . 4 1 4 6 3 2 3 2 1 . 3 1 3 1 . 1 . 1 . 1 . Gunslinging . | . . . . . . . . . . . . . . . . . . . . . . . . . Exploded 4 | . 1 . . 3 . 4 3 3 1 3 2 . . 3 . 3 . . . . . . . . Melee 1 | . . . . . . . . . 1 . . . . 1 . . . . . . . . 1 . Uniques/NPCs Destroyed . | . . . . . . . . . . . . . . . . . . . . . . . . . Combat | -11 -10 -10 -10 -9 -8 -8 -8 -8 -7 -7 -6 -6 -6 -6 -5 -5 -4 -4 -4 -4 -4 -4 -3 -3 -------- Run | Jun Mat Min Exi Min Mat Gar Mat Gar Fac Gar Fac Was Fac Gar Fac Gar Fac Was Fac Upp Upp War Pro Res Damage Taken 8968 | . 262 . . 39 210 270 752 229 456 681 144 73 . 916 . 1015 540 77 620 . 541 37 1219 887 Core 1222 | . 50 . . 6 . 15 158 26 27 170 . . . 68 . 129 94 32 22 . 64 . 208 153 Absorbed by Shields 707 | . . . . . . . . . . . . . . . . 42 . . 95 . 194 14 362 . Reduced by Siege Mode 94 | . . . . . . . . . . . . . . . . . . . 14 . 8 . 72 . Regen/Repaired (Parts) 756 | . . . . . . . . . . . . 312 . 444 . . . . . . . . . . Core Remaining (%) 79 | 100 . . . 77 . . . 63 . 71 . . . 92 . 87 . . . . . . 63 . Volleys Fired 455 | . 16 3 . 5 22 27 37 22 21 34 11 1 7 43 9 71 31 9 39 . 19 . 28 . Largest 3 | . 2 2 . 2 3 3 3 3 3 3 2 1 1 2 1 2 1 1 2 . 1 . 1 . Hottest 205 | . 136 136 . 136 164 205 156 176 176 191 147 5 83 140 57 140 60 7 125 . 65 . 65 . Shots Fired 725 | . 27 6 . 8 63 58 89 44 33 54 17 1 7 72 9 98 31 9 49 2 20 . 28 . Gun 59 | . . . . . 19 9 28 3 . . . . . . . . . . . . . . . . Cannon 535 | . 23 6 . 6 44 39 54 29 30 38 13 . 1 63 2 82 15 . 41 2 19 . 28 . Launcher 72 | . 4 . . 2 . 10 7 12 3 16 4 . 2 7 . 5 . . . . . . . . Special 59 | . . . . . . . . . . . . 1 4 2 7 11 16 9 8 . 1 . . . Kinetic 428 | . . . . . 19 18 79 15 19 20 5 . 1 63 2 82 15 . 41 2 19 . 28 . Thermal 157 | . 23 6 . 6 44 24 3 14 11 18 8 . . . . . . . . . . . . . Explosive 68 | . 4 . . 2 . 10 7 12 3 12 4 . 2 7 . 5 . . . . . . . . Electromagnetic 13 | . . . . . . 6 . 3 . 4 . . . . . . . . . . . . . . Robot Hit Streak 24 | . 3 5 . 10 10 9 12 12 8 7 1 2 3 7 8 24 17 17 18 . 6 . 9 . Robot Miss Streak 6 | . 2 1 . 1 2 3 6 4 4 3 3 . 2 3 2 2 1 . 3 1 2 . 2 . Penetration Max 2 | . . . . . . . 1 . . . . . . 2 . 1 . . . . . . . . Secondary Targets . | . . . . . . . . . . . . . . . . . . . . . . . . . Shots Hit Robots 498 | . 15 5 . 6 47 25 69 27 22 19 10 5 3 43 6 72 34 9 45 2 13 . 21 . Core Hits 344 | . 12 2 . 7 10 32 72 31 19 35 9 3 . 35 1 38 9 . 15 . 5 . 9 . Critical Kills 5 | . . . . . . . . . . . . . . 2 . 3 . . . . . . . . Critical Parts Destroyed 17 | . . . . . 1 1 . . . . . . . 8 . 7 . . . . . . . . Critical Strikes 47 | . . . . . 1 1 . . . 1 . 1 . 17 . 20 2 . 2 . 2 . . . Destroy 24 | . . . . . 1 1 . . . . . . . 12 . 10 . . . . . . . . Blast 20 | . . . . . . . . . . 1 . . . 5 . 9 2 . 1 . 2 . . . Sever 2 | . . . . . . . . . . . . 1 . . . 1 . . . . . . . . Impale 1 | . . . . . . . . . . . . . . . . . . . 1 . . . . . Melee Attacks 187 | . . . . . 13 2 27 13 14 10 27 4 2 11 6 27 16 . 13 2 . . . . Impact 6 | . . . . . 6 . . . . . . . . . . . . . . . . . . . Slashing 140 | . . . . . 7 2 23 7 14 10 27 4 2 11 6 27 . . . . . . . . Piercing 31 | . . . . . . . . . . . . . . . . . 16 . 13 2 . . . . Sneak Attacks 40 | . . . . . 1 . 8 6 4 . 6 4 . . . . 6 . 5 . . . . . Combat Hostiles . | . . . . . . . . . . . . . . . . . . . . . . . . . Follow-up Attacks . | . . . . . . . . . . . . . . . . . . . . . . . . . Damage Inflicted 25301 | . 567 101 . 378 933 1408 3023 1242 1218 1983 893 228 89 3090 63 4959 1394 . 2273 184 506 . 759 10 Guns 780 | . . . . . 222 77 459 22 . . . . . . . . . . . . . . . . Cannons 13724 | . 286 101 . 124 655 461 712 335 458 504 93 . 89 2170 14 3868 841 . 1750 . 506 . 757 . Explosions 7671 | . 281 . . 254 . 870 1484 885 448 1479 351 . . 881 . 738 . . . . . . . . Melee 3091 | . . . . . 56 . 368 . 312 . 449 228 . 39 49 353 530 . 523 184 . . . . Ramming 35 | . . . . . . . . . . . . . . . . . 23 . . . . . 2 10 Kinetic 12270 | . . . . . 222 124 1110 158 258 310 93 . 89 2170 14 3868 841 . 1750 . 506 . 757 . Thermal 2168 | . 286 101 . 124 655 269 189 150 200 194 . . . . . . . . . . . . . . Explosive 7306 | . 281 . . 254 . 870 1356 885 448 1242 351 . . 881 . 738 . . . . . . . . Electromagnetic 431 | . . . . . . 145 . 49 . 237 . . . . . . . . . . . . . . Impact . | . . . . . . . . . . . . . . . . . . . . . . . . . Slashing 1854 | . . . . . 56 . 368 . 312 . 449 228 . 39 49 353 . . . . . . . . Piercing 1237 | . . . . . . . . . . . . . . . . . 530 . 523 184 . . . . Highest Corruption 23 | . . . . . . . . . . . 2 2 2 2 . 4 . 13 14 14 23 23 . . Average Corruption 6 | . . . . . . . . . . . 2 2 2 2 . 3 . 9 13 14 21 23 . . Corruption Purged . | . . . . . . . . . . . . . . . . . . . . . . . . . Corruption Blocked . | . . . . . . . . . . . . . . . . . . . . . . . . . Effects 151 | . . . . . . . . . . . 3 7 3 26 . 37 . 4 35 13 21 2 . . Message Errors 40 | . . . . . . . . . . . . 2 . 8 . 8 . 1 10 5 5 1 . . Matter Fused 35 | . . . . . . . . . . . 2 . . 6 . 8 . 1 10 2 6 . . . Heat Flow Errors 19 | . . . . . . . . . . . . . 3 3 . 3 . 1 6 . 3 . . . Energy Discharges 14 | . . . . . . . . . . . 1 1 . 1 . 5 . . 2 1 2 1 . . Parts Rejected 5 | . . . . . . . . . . . . . . . . 2 . 1 1 . 1 . . . Data Loss (minor) 16 | . . . . . . . . . . . . 3 . 3 . 7 . . 2 1 . . . . Data Loss (major) 7 | . . . . . . . . . . . . . . 2 . 2 . . 1 2 . . . . Misfires 7 | . . . . . . . . . . . . . . 1 . 1 . . 2 2 1 . . . Alerts 4 | . . . . . . . . . . . . 1 . 1 . 1 . . . . 1 . . . Misdirections 2 | . . . . . . . . . . . . . . . . . . . . . 2 . . . Weapon Failures 2 | . . . . . . . . . . . . . . 1 . . . . 1 . . . . . Overload Shots . | . . . . . . . . . . . . . . . . . . . . . . . . . Overflow Damage 1743 | . 33 . . 13 1 43 97 2 118 19 129 23 49 104 27 347 315 . 281 129 13 . . . Projectiles 725 | . . . . 13 1 17 . . . . . . 49 75 . 347 121 . 89 . 13 . . . Explosions 215 | . 33 . . . . 26 55 2 51 19 . . . 29 . . . . . . . . . . Melee 803 | . . . . . . . 42 . 67 . 129 23 . . 27 . 194 . 192 129 . . . . Knockbacks 47 | . . . . . . 3 15 . . 5 . . . 7 . 8 3 . 1 . . . 5 . Impact . | . . . . . . . . . . . . . . . . . . . . . . . . . Kinetic 45 | . . . . . . 3 14 . . 5 . . . 6 . 8 3 . 1 . . . 5 . Secondary 2 | . . . . . . . 1 . . . . . . 1 . . . . . . . . . . Self-Inflicted Damage 356 | . 16 . . . . . 162 . 123 4 . . . 51 . . . . . . . . . . Shots 13 | . 2 . . . . . 5 . 2 2 . . . 2 . . . . . . . . . . Rammed 13 | . . . . . . . . . . . . . . . . . 2 . . . . . 1 10 Targets Rammed 14 | . . . . . . . . . . . . . . . . . 2 . . . . . 2 10 Kicked . | . . . . . . . . . . . . . . . . . . . . . . . . . Crushed 1 | . . . . . . . . . . . . . . . . . . . . . . . 1 . Highest Temperature 345 | . 345 90 . 90 108 180 152 329 267 231 90 . 147 223 . 161 14 142 232 . 211 323 . . Average Temperature 69 | . 146 40 . 42 33 64 38 109 91 65 41 . 81 51 . 17 14 91 98 . 65 170 . . Received Heat Transfer 1646 | . 120 . . . 144 63 288 99 66 105 . . . 192 . 144 172 . 9 . 133 . 84 27 Effects 2 | . 2 . . . . . . . . . . . . . . . . . . . . . . . Shutdowns 1 | . 1 . . . . . . . . . . . . . . . . . . . . . . . Matter Decay 1 | . 1 . . . . . . . . . . . . . . . . . . . . . . . Siege Activations 6 | . . . . . . . . . . . . . . . . . . . 2 . 1 . 3 . Total Turns 143 | . . . . . . . . . . . . . . . . . . . 37 . 19 . 87 . Longest Duration 44 | . . . . . . . . . . . . . . . . . . . 26 . 19 . 44 . Robots Corrupted . | . . . . . . . . . . . . . . . . . . . . . . . . . Combat Hostiles . | . . . . . . . . . . . . . . . . . . . . . . . . . Parts Fried . | . . . . . . . . . . . . . . . . . . . . . . . . . Impact Corruptions 1 | . . . . . . . . . . . . . . 1 . . . . . . . . . . Robots Melted . | . . . . . . . . . . . . . . . . . . . . . . . . . Combat Hostiles . | . . . . . . . . . . . . . . . . . . . . . . . . . Parts Melted 8 | . . 1 . . 4 1 1 . . . . . . . . 1 . . . . . . . . Heat Transferred 3592 | . 518 185 . 222 1184 404 211 222 296 350 . . . . . . . . . . . . . . Parts Sabotaged . | . . . . . . . . . . . . . . . . . . . . . . . . . Parts Stolen . | . . . . . . . . . . . . . . . . . . . . . . . . . Parts Stripped . | . . . . . . . . . . . . . . . . . . . . . . . . . Power Chain Reactions . | . . . . . . . . . . . . . . . . . . . . . . . . . Missiles Intercepted . | . . . . . . . . . . . . . . . . . . . . . . . . . Alert | -11 -10 -10 -10 -9 -8 -8 -8 -8 -7 -7 -6 -6 -6 -6 -5 -5 -4 -4 -4 -4 -4 -4 -3 -3 ------- Run | Jun Mat Min Exi Min Mat Gar Mat Gar Fac Gar Fac Was Fac Gar Fac Gar Fac Was Fac Upp Upp War Pro Res Peak Influence 1549 | . 215 54 . 235 250 892 863 943 733 1130 673 177 277 1510 800 1549 927 248 225 . . . . 158 Initial 812 | . . 44 . . 16 62 434 272 494 513 592 110 . 191 792 450 812 248 152 . . . . 128 Average 578 | . 77 34 . 163 110 511 514 662 559 961 496 112 206 1017 691 1168 813 229 129 . . . . 136 Maximum Alert Level 4 | . 1 . . 1 1 3 3 3 3 4 2 . 1 4 3 4 3 1 1 . . . . . Low Security (%) 25 | 100 87 100 . 39 83 6 . . . . . 100 35 1 . . . . 97 . . . . 100 Level 1 11 | . 12 . . 60 16 34 14 8 . . 16 . 65 2 . . . 100 2 . . . . . Level 2 27 | . . . . . . 30 69 51 84 15 83 . . 17 65 12 . . . . . . . . Level 3 20 | . . . . . . 28 16 39 15 55 . . . 30 34 18 100 . . . . . . . Level 4 14 | . . . . . . . . . . 29 . . . 47 . 68 . . . . . . . . Level 5 . | . . . . . . . . . . . . . . . . . . . . . . . . . High Security . | . . . . . . . . . . . . . . . . . . . . . . . . . Max Security . | . . . . . . . . . . . . . . . . . . . . . . . . . Squads Dispatched 23 | . 2 . . . 2 . 3 . 2 . 2 . 3 . 2 . 3 . 4 . . . . . Investigation 2 | . 1 . . . 1 . . . . . . . . . . . . . . . . . . . Extermination 5 | . . . . . . . . . 1 . 1 . 1 . . . 1 . 1 . . . . . Reinforcement 9 | . 1 . . . 1 . 2 . . . . . 2 . . . . . 3 . . . . . Assault 6 | . . . . . . . 1 . . . 1 . . . 2 . 2 . . . . . . . Garrison 1 | . . . . . . . . . 1 . . . . . . . . . . . . . . . Intercept . | . . . . . . . . . . . . . . . . . . . . . . . . . Searches Triggered . | . . . . . . . . . . . . . . . . . . . . . . . . . Construction Impeded 3 | . . . . . 1 . 1 . . . . . 1 . . . . . . . . . . . Haulers Reinforced . | . . . . . . . . . . . . . . . . . . . . . . . . . Active Scanning Responses . | . . . . . . . . . . . . . . . . . . . . . . . . . Cargo Convoy Interrupts . | . . . . . . . . . . . . . . . . . . . . . . . . . Stealth | -11 -10 -10 -10 -9 -8 -8 -8 -8 -7 -7 -6 -6 -6 -6 -5 -5 -4 -4 -4 -4 -4 -4 -3 -3 --------- Run | Jun Mat Min Exi Min Mat Gar Mat Gar Fac Gar Fac Was Fac Gar Fac Gar Fac Was Fac Upp Upp War Pro Res Distress Signals 9 | . . . . . 1 . 4 . . . . . 2 . . . 2 . . . . . . . Communications Jammed 26 | . . . . . . . . . 1 . 21 . 4 . . . . . . . . . . . Distress Signals 22 | . . . . . . . . . 1 . 21 . . . . . . . . . . . . . Times Spotted 271 | . 13 . . 4 16 10 37 12 10 17 11 4 2 30 4 28 21 6 13 . 13 . 16 4 Peak Tracking Total 9 | . 3 . . 4 5 4 9 3 3 6 5 2 2 4 3 8 7 3 3 . 6 . 8 4 Tactical Retreats 17 | . . . . . . . . . 1 2 . . . 5 . 1 . . 1 . 4 . 3 . Traps | -11 -10 -10 -10 -9 -8 -8 -8 -8 -7 -7 -6 -6 -6 -6 -5 -5 -4 -4 -4 -4 -4 -4 -3 -3 ------- Run | Jun Mat Min Exi Min Mat Gar Mat Gar Fac Gar Fac Was Fac Gar Fac Gar Fac Was Fac Upp Upp War Pro Res Traps Triggered 30 | . 1 . . . . 1 2 2 . 5 1 . . 11 . 4 1 . 1 . . 1 . . Indirectly . | . . . . . . . . . . . . . . . . . . . . . . . . . Trap Hack Attempts . | . . . . . . . . . . . . . . . . . . . . . . . . . Triggered . | . . . . . . . . . . . . . . . . . . . . . . . . . Disarmed . | . . . . . . . . . . . . . . . . . . . . . . . . . Reprogrammed . | . . . . . . . . . . . . . . . . . . . . . . . . . Reused . | . . . . . . . . . . . . . . . . . . . . . . . . . Traps Extracted . | . . . . . . . . . . . . . . . . . . . . . . . . . Installed . | . . . . . . . . . . . . . . . . . . . . . . . . . Triggered 1 | . . . . . . . . . . . . . . . . . . . . 1 . . . . Exploded 2 | . . . . . . . 2 . . . . . . . . . . . . . . . . . Machines | -11 -10 -10 -10 -9 -8 -8 -8 -8 -7 -7 -6 -6 -6 -6 -5 -5 -4 -4 -4 -4 -4 -4 -3 -3 ---------- Run | Jun Mat Min Exi Min Mat Gar Mat Gar Fac Gar Fac Was Fac Gar Fac Gar Fac Was Fac Upp Upp War Pro Res Machines Disabled 37 | . . . . . 2 6 6 5 3 2 2 . . 3 . 7 . . 1 . . . . . Max in Single Turn 2 | . . . . . 1 1 2 1 2 1 2 . . 1 . 1 . . 1 . . . . . Garrison Relay 16 | . . . . . . 5 . 3 . . . . . 4 . 4 . . . . . . . . Machines Repaired . | . . . . . . . . . . . . . . . . . . . . . . . . . Machines Sabotaged . | . . . . . . . . . . . . . . . . . . . . . . . . . Overloaded Fab Kills . | . . . . . . . . . . . . . . . . . . . . . . . . . Hacking | -11 -10 -10 -10 -9 -8 -8 -8 -8 -7 -7 -6 -6 -6 -6 -5 -5 -4 -4 -4 -4 -4 -4 -3 -3 --------- Run | Jun Mat Min Exi Min Mat Gar Mat Gar Fac Gar Fac Was Fac Gar Fac Gar Fac Was Fac Upp Upp War Pro Res Machines Accessed 46 | . 3 . 3 1 5 3 7 3 4 4 1 . 1 1 4 1 4 . 1 . . . . . Terminals 31 | . 2 . . 1 4 3 5 3 1 4 . . . 1 2 1 3 . 1 . . . . . Fabricators 2 | . . . . . . . . . . . . . . . 1 . 1 . . . . . . . Repair Stations 2 | . . . . . . . . . 1 . 1 . . . . . . . . . . . . . Recycling Units 2 | . 1 . . . . . . . 1 . . . . . . . . . . . . . . . Scanalyzers 1 | . . . . . . . 1 . . . . . . . . . . . . . . . . . Garrison Access 5 | . . . . . 1 . 1 . 1 . . . 1 . 1 . . . . . . . . . Total Hacks 91 | . 7 . 4 3 14 5 19 4 4 5 2 . 1 1 9 2 7 . 4 . . . . . Successful 41 | . 4 . 4 1 7 . 10 3 1 1 1 . 1 1 3 1 1 . 2 . . . . . Failed 50 | . 3 . . 2 7 5 9 1 3 4 1 . . . 6 1 6 . 2 . . . . . Catastrophic 19 | . . . . 2 1 4 2 . 1 2 . . . . 2 . 4 . 1 . . . . . Database Lockouts . | . . . . . . . . . . . . . . . . . . . . . . . . . Manual 47 | . 5 . 1 3 10 . 12 . 2 . . . . . 6 . 6 . 2 . . . . . Terminals 68 | . 6 . . 3 13 5 12 4 1 5 . . . 1 6 2 6 . 4 . . . . . Fabricators 3 | . . . . . . . . . . . . . . . 2 . 1 . . . . . . . Repair Stations 3 | . . . . . . . . . 1 . 2 . . . . . . . . . . . . . Recycling Units 2 | . 1 . . . . . . . 1 . . . . . . . . . . . . . . . Scanalyzers 6 | . . . . . . . 6 . . . . . . . . . . . . . . . . . Garrison Access 5 | . . . . . 1 . 1 . 1 . . . 1 . 1 . . . . . . . . . Terminal Hacks 18 | . 2 . 4 1 3 . 1 3 . 1 . . . 1 1 1 . . . . . . . . Record 3 | . . . 3 . . . . . . . . . . . . . . . . . . . . . Part Schematic 1 | . . . . 1 . . . . . . . . . . . . . . . . . . . . Robot Analysis 1 | . 1 . . . . . . . . . . . . . . . . . . . . . . . Prototype ID Bank 1 | . 1 . . . . . . . . . . . . . . . . . . . . . . . Open Door 1 | . . . . . . . . 1 . . . . . . . . . . . . . . . . Emergency Access Points 3 | . . . . . . . . 1 . . . . . 1 . 1 . . . . . . . . Alert Level 1 | . . . . . 1 . . . . . . . . . . . . . . . . . . . Unreport Threat 2 | . . . . . . . 1 . . . . . . . 1 . . . . . . . . . Zone Layout 2 | . . . . . 2 . . . . . . . . . . . . . . . . . . . Garrison Registry 1 | . . . . . . . . . . 1 . . . . . . . . . . . . . . Security Stations 1 | . . . . . . . . 1 . . . . . . . . . . . . . . . . EX-Prototype ID Bank 1 | . . . 1 . . . . . . . . . . . . . . . . . . . . . Fabricator Hacks . | . . . . . . . . . . . . . . . . . . . . . . . . . Repair Station Hacks 1 | . . . . . . . . . . . 1 . . . . . . . . . . . . . Scan Component 1 | . . . . . . . . . . . 1 . . . . . . . . . . . . . Recycling Unit Hacks . | . . . . . . . . . . . . . . . . . . . . . . . . . Scanalyzer 6 | . . . . . . . 6 . . . . . . . . . . . . . . . . . Insert Component 3 | . . . . . . . 3 . . . . . . . . . . . . . . . . . Analyze 3 | . . . . . . . 3 . . . . . . . . . . . . . . . . . Garrison Access Hacks 5 | . . . . . 1 . 1 . 1 . . . 1 . 1 . . . . . . . . . Unlock Access 5 | . . . . . 1 . 1 . 1 . . . 1 . 1 . . . . . . . . . Unauthorized Hacks 11 | . 2 . . . 3 . 2 . . . . . . . 1 . 1 . 2 . . . . . Terminals 10 | . 1 . . . 3 . 2 . . . . . . . 1 . 1 . 2 . . . . . Assimilate 2 | . . . . . 1 . 1 . . . . . . . . . . . . . . . . . Botnet 5 | . 1 . . . 2 . 1 . . . . . . . . . . . 1 . . . . . Operators 3 | . . . . . . . . . . . . . . . 1 . 1 . 1 . . . . . Fabricators . | . . . . . . . . . . . . . . . . . . . . . . . . . Repair Stations . | . . . . . . . . . . . . . . . . . . . . . . . . . Recycling Units 1 | . 1 . . . . . . . . . . . . . . . . . . . . . . . Tunnel 1 | . 1 . . . . . . . . . . . . . . . . . . . . . . . Scanalyzers . | . . . . . . . . . . . . . . . . . . . . . . . . . Garrison Access . | . . . . . . . . . . . . . . . . . . . . . . . . . Data Cores Recovered 1 | . . . . . 1 . . . . . . . . . . . . . . . . . . . Used . | . . . . . . . . . . . . . . . . . . . . . . . . . Hacking Detections 33 | . 2 . . 1 4 3 7 1 2 3 1 . . 1 3 1 4 . . . . . . . Full Trace Events 2 | . . . . . 1 1 . . . . . . . . . . . . . . . . . . Feedback Events . | . . . . . . . . . . . . . . . . . . . . . . . . . Feedback Blocked . | . . . . . . . . . . . . . . . . . . . . . . . . . Robot Schematics Acquired . | . . . . . . . . . . . . . . . . . . . . . . . . . Robots Built . | . . . . . . . . . . . . . . . . . . . . . . . . . Authchips . | . . . . . . . . . . . . . . . . . . . . . . . . . Time . | . . . . . . . . . . . . . . . . . . . . . . . . . Total Robot Build Rating . | . . . . . . . . . . . . . . . . . . . . . . . . . Part Schematics Acquired 4 | . . . . 1 . . 3 . . . . . . . . . . . . . . . . . Parts Built . | . . . . . . . . . . . . . . . . . . . . . . . . . Authchips . | . . . . . . . . . . . . . . . . . . . . . . . . . Time . | . . . . . . . . . . . . . . . . . . . . . . . . . Total Part Build Rating . | . . . . . . . . . . . . . . . . . . . . . . . . . Parts Repaired . | . . . . . . . . . . . . . . . . . . . . . . . . . Time . | . . . . . . . . . . . . . . . . . . . . . . . . . Parts Recycled . | . . . . . . . . . . . . . . . . . . . . . . . . . Recycled Matter . | . . . . . . . . . . . . . . . . . . . . . . . . . Retrieved Matter . | . . . . . . . . . . . . . . . . . . . . . . . . . Retrieved Components . | . . . . . . . . . . . . . . . . . . . . . . . . . Parts Scanalyzed 3 | . . . . . . . 3 . . . . . . . . . . . . . . . . . Part Schematics Acquired 3 | . . . . . . . 3 . . . . . . . . . . . . . . . . . Parts Damaged 1 | . . . . . . . 1 . . . . . . . . . . . . . . . . . Bothacking | -11 -10 -10 -10 -9 -8 -8 -8 -8 -7 -7 -6 -6 -6 -6 -5 -5 -4 -4 -4 -4 -4 -4 -3 -3 ------------ Run | Jun Mat Min Exi Min Mat Gar Mat Gar Fac Gar Fac Was Fac Gar Fac Gar Fac Was Fac Upp Upp War Pro Res Used RIF Installer 5 | . . . . . . 1 . 1 . 1 . . . 1 . 1 . . . . . . . . Code Merge 1 | . . . . . . . . . . . . . . . . 1 . . . . . . . . Patrol Navigation 1 | . . . . . . . . 1 . . . . . . . . . . . . . . . . Program Shield 1 | . . . . . . . . . . 1 . . . . . . . . . . . . . . Autoassimilate 1 | . . . . . . . . . . . . . . 1 . . . . . . . . . . Robots Hacked 45 | . . . . . . . 2 . . . . 1 1 1 4 10 11 6 7 . 2 . . . Non-combat 16 | . . . . . . . 2 . . . . . 1 . 4 . 6 . 3 . . . . . Combat 29 | . . . . . . . . . . . . 1 . 1 . 10 5 6 4 . 2 . . . Autoassimilated 2 | . . . . . . . . . . . . . . . . 1 . . . . 1 . . . Robot Hacks Applied 49 | . . . . . . . 4 . . . . 1 1 1 4 9 12 8 8 . 1 . . . no_distress 1 | . . . . . . . 1 . . . . . . . . . . . . . . . . . find_chute 2 | . . . . . . . . . . . . . . . 1 . 1 . . . . . . . map_walls 4 | . . . . . . . . . . . . . . . 1 . 2 . 1 . . . . . drop_inventory 5 | . . . . . . . . . . . . . . . 1 . 2 . 2 . . . . . purge_threat 3 | . . . . . . . 3 . . . . . . . . . . . . . . . . . map_route 2 | . . . . . . . . . . . . . . . . . 2 . . . . . . . ignore_targets 9 | . . . . . . . . . . . . 1 . . . . . 8 . . . . . . scatter_targeting 1 | . . . . . . . . . . . . . . . . 1 . . . . . . . . overload_power 1 | . . . . . . . . . . . . . . . . . . . 1 . . . . . wipe_record 1 | . . . . . . . . . . . . . . . . 1 . . . . . . . . disable_weapons 1 | . . . . . . . . . . . . . . . . . . . 1 . . . . . reboot_system 5 | . . . . . . . . . . . . . . . . 3 . . 1 . 1 . . . overwrite_iff 7 | . . . . . . . . . . . . . . . . 4 1 . 2 . . . . . formatsys_low 2 | . . . . . . . . . . . . . 1 . 1 . . . . . . . . . formatsys_high 5 | . . . . . . . . . . . . . . 1 . . 4 . . . . . . . Relay Couplers Released 68 | . . . . . . 22 . 12 . . . . . 18 . 16 . . . . . . . . Machine Destruction 68 | . . . . . . 22 . 12 . . . . . 18 . 16 . . . . . . . . Attached 14 | . . . . . . . 1 . . . . 1 . 2 . 7 1 . 2 . . . . . Merged Code Value 44 | . . . . . . . . . . . . . . . . 44 . . . . . . . . Fabnet Peak Effective % . | . . . . . . . . . . . . . . . . . . . . . . . . . Robots Rewired 6 | . . . . . . . . 3 . . . . . 3 . . . . . . . . . . Allies Hacked . | . . . . . . . . . . . . . . . . . . . . . . . . . Hacks Repelled . | . . . . . . . . . . . . . . . . . . . . . . . . . Allies | -11 -10 -10 -10 -9 -8 -8 -8 -8 -7 -7 -6 -6 -6 -6 -5 -5 -4 -4 -4 -4 -4 -4 -3 -3 -------- Run | Jun Mat Min Exi Min Mat Gar Mat Gar Fac Gar Fac Was Fac Gar Fac Gar Fac Was Fac Upp Upp War Pro Res Total Allies 47 | . . 3 . 2 . . . 3 . . . 18 1 4 1 7 5 . 2 . 1 . . . Largest Group 18 | . . 3 3 5 4 . . 3 3 . . 18 13 11 2 2 2 1 2 . 1 . . . Highest-Rated Group 638 | . . 40 40 86 78 . . 70 70 . . 638 462 339 57 157 105 49 54 . 47 . . . Highest-Rated Ally 95 | . . 16 16 31 31 . . 25 25 . . 50 46 46 32 95 58 49 47 . 47 . . . Total Orders 11 | . . . . . . . . . . . 2 . 1 1 1 . 5 . . . 1 . . . STAY 5 | . . . . . . . . . . . . . . . 1 . 4 . . . . . . . FOLLOW 1 | . . . . . . . . . . . . . . . . . 1 . . . . . . . GUARD 1 | . . . . . . . . . . . . . . . . . . . . . 1 . . . AID 2 | . . . . . . . . . . . . . 1 1 . . . . . . . . . . EXPLORE 2 | . . . . . . . . . . . 2 . . . . . . . . . . . . . Ally Attacks 371 | . . . . 11 63 . . . 10 . . 102 61 64 2 22 18 8 7 . 3 . . . Total Damage 9246 | . . . . 83 787 . . . 286 . . 3330 1252 1658 44 768 546 214 158 . 120 . . . Kills 57 | . . . . 4 10 . . . 4 . . 8 8 15 . 2 4 . 1 . 1 . . . Allies Corrupted 1 | . . . . . . . . . . . . . . . . . . . 1 . . . . . Allies Melted 1 | . . . . . . . . . . . . . . . . 1 . . . . . . . . Intel | -11 -10 -10 -10 -9 -8 -8 -8 -8 -7 -7 -6 -6 -6 -6 -5 -5 -4 -4 -4 -4 -4 -4 -3 -3 ------- Run | Jun Mat Min Exi Min Mat Gar Mat Gar Fac Gar Fac Was Fac Gar Fac Gar Fac Was Fac Upp Upp War Pro Res Robot Analysis Total 1 | . 1 . . . . . . . . . . . . . . . . . . . . . . . Derelict Logs Recovered 2 | . . 1 . 1 . . . . . . . . . . . . . . . . . . . . Drone Launches 2 | . . . . . . . . . . . 2 . . . . . . . . . . . . . Drone Recoveries 1 | . . . . . . . . . . . 1 . . . . . . . . . . . . . Exploration | -11 -10 -10 -10 -9 -8 -8 -8 -8 -7 -7 -6 -6 -6 -6 -5 -5 -4 -4 -4 -4 -4 -4 -3 -3 ------------- Run | Jun Mat Min Exi Min Mat Gar Mat Gar Fac Gar Fac Was Fac Gar Fac Gar Fac Was Fac Upp Upp War Pro Res Turns Passed 18107 | 5 692 514 335 562 1189 1061 1373 1003 786 910 1237 543 340 1736 395 1936 824 144 887 300 395 98 716 126 Spaces Moved 10693 | 2 375 312 214 337 650 711 792 653 480 526 687 351 210 974 229 1059 434 83 507 218 275 76 430 108 Core 193 | . . . . . . . . . . . . . . . . . . . . . . . 85 108 Treads 1887 | 2 375 312 162 72 . . . . . . . . . . . . 434 83 336 81 . . 30 . Legs . | . . . . . . . . . . . . . . . . . . . . . . . . . Wheels 8613 | . . . 52 265 650 711 792 653 480 526 687 351 210 974 229 1059 . . 171 137 275 76 315 . Hover . | . . . . . . . . . . . . . . . . . . . . . . . . . Flight . | . . . . . . . . . . . . . . . . . . . . . . . . . Fastest Speed 50 | 160 160 160 130 130 115 130 120 125 125 125 140 140 140 140 140 140 145 145 130 130 115 130 50 100 Average Speed 138 | 160 160 160 152 155 145 130 128 126 135 135 140 140 140 140 145 142 145 145 139 135 124 130 119 100 Slowest Speed 225 | 160 160 160 160 175 190 130 145 140 140 160 140 140 140 140 155 155 225 145 145 145 130 130 152 100 Overloaded Moves . | . . . . . . . . . . . . . . . . . . . . . . . . . Propulsion Burnouts . | . . . . . . . . . . . . . . . . . . . . . . . . . Robots Hopped . | . . . . . . . . . . . . . . . . . . . . . . . . . Cave-ins Triggered 1 | . . . . . . . . . . 1 . . . . . . . . . . . . . . Exploration Rate (%) 48 | 2 60 63 60 78 55 80 65 66 14 66 14 96 8 85 6 90 14 84 13 43 56 15 71 4 Regions Visited 24 Branch Regions 7 Pre-discovered Areas 2 | . 1 . 1 . . . . . . . . . . . . . . . . . . . . . Known Exits Taken 5 | . . . . . 1 . 1 . 1 . . . 1 . 1 . . . . . . . . . Unknown Exits Taken 10 | 1 1 1 1 1 . . . . . . . . . . . . . . 1 1 1 1 1 . Scrap Searched 5 | . . 1 . 2 . . . . . . . . . . . . . . . . 2 . . . Spaces Dug 175 | . 5 . . 4 10 1 15 8 12 39 24 . 2 11 5 18 10 . 7 . 3 . 1 . Terrain Destroyed 666 | . 25 . . 9 11 57 97 73 65 98 50 . 9 77 5 41 14 . 18 2 6 . 9 . Melee 101 | . . . . . 10 . 15 5 5 2 19 . 2 7 5 14 10 . 7 . . . . . Projectile 104 | . . . . . 1 2 5 2 11 8 10 . . 17 . 16 4 . 11 2 6 . 9 . AOE 461 | . 25 . . 9 . 55 77 66 49 88 21 . 7 53 . 11 . . . . . . . . Terrain Rammed . | . . . . . . . . . . . . . . . . . . . . . . . . . Walls Destroyed . | . . . . . . . . . . . . . . . . . . . . . . . . . Machines Disabled . | . . . . . . . . . . . . . . . . . . . . . . . . . Actions | -11 -10 -10 -10 -9 -8 -8 -8 -8 -7 -7 -6 -6 -6 -6 -5 -5 -4 -4 -4 -4 -4 -4 -3 -3 --------- Run | Jun Mat Min Exi Min Mat Gar Mat Gar Fac Gar Fac Was Fac Gar Fac Gar Fac Was Fac Upp Upp War Pro Res Total 12971 | 3 443 321 222 366 837 786 1024 783 561 650 905 399 249 1235 270 1317 569 103 604 219 307 75 603 120 Wait 800 | . 15 4 . 11 58 14 88 36 17 40 150 18 15 68 14 42 46 . 17 . 11 . 136 . Move 10672 | 1 374 311 213 336 649 710 791 652 479 524 687 350 210 973 229 1058 434 82 506 217 274 75 429 108 Hop . | . . . . . . . . . . . . . . . . . . . . . . . . . Pick Up 155 | . 9 3 4 7 33 3 7 14 5 3 8 7 3 4 . 19 7 7 9 . . . 1 2 Fast Attach 48 | . 6 . . . 4 . 6 1 1 3 3 2 . 3 . 9 2 3 2 . 2 . 1 . Attach 45 | . 1 . . . 8 . 4 2 3 1 2 1 . . 2 4 5 . 6 . . . 6 . Detach 20 | . 3 . . . 2 . 2 1 1 . . . . 2 . 4 3 . 1 . 1 . . . Swap 278 | 2 7 . 3 5 16 26 49 21 15 13 8 6 6 27 10 38 17 1 8 . . . . . Drop 153 | . 12 . 2 2 32 4 13 13 5 5 9 10 5 7 . 24 6 1 3 . . . . . Fire 455 | . 16 3 . 5 22 27 37 22 21 34 11 1 7 43 9 71 31 9 39 . 19 . 28 . Melee 187 | . . . . . 13 2 27 13 14 10 27 4 2 11 6 27 16 . 13 2 . . . . Ram . | . . . . . . . . . . . . . . . . . . . . . . . . . Kick . | . . . . . . . . . . . . . . . . . . . . . . . . . Crush 14 | . . . . . . . . . . . . . . . . . 2 . . . . . 2 10 Escape Stasis 103 | . . . . . . . . 8 . 17 . . . 57 . 21 . . . . . . . . Rewire 41 | . . . . . . . . . . . . . 1 40 . . . . . . . . . . Trap . | . . . . . . . . . . . . . . . . . . . . . . . . . Miscellaneous . | . . . . . . . . . . . . . . . . . . . . . . . . . Route ------- -11/Junkyard -10/Materials (discovered 2 exits: [*Mat] / [*Min]) -10/Mines (discovered 2 exits: [*Mat] / *Exi) -10/Exiles -9/Mines -8/Materials (discovered 4 exits: *Fac x2 / *Sto / Gar) -8/Garrison (discovered 4 exits: *Fac x3 / *Mat) -8/Materials (discovered 3 exits: *Sto x2 / Gar) -8/Garrison (discovered 2 exits: *Fac x2) -7/Factory -7/Garrison (discovered 3 exits: *Fac x3) -6/Factory -6/Waste -6/Factory -6/Garrison (discovered 4 exits: *Fac x3 / [*Fac]) -5/Factory -5/Garrison (discovered 3 exits: *Fac x3) -4/Factory -4/Waste -4/Factory -4/Upper Caves -4/Upper Caves -4/Warlord -3/Proximity Caves -3/Research History --------- Turn | Location | Event 4 | -11/Junkyard | Discovered new exit (range 1) 6 | -11/Junkyard | Entered Materials 311 | -10/Materials | Build established: Mutant 435 | -10/Materials | Discovered new exit (range 4) 674 | -10/Materials | Discovered new exit (range 16) 698 | -10/Materials | Entered Mines 722 | -10/Mines | Learned 4 Materials zone layouts 921 | -10/Mines | Discovered new exit (range 9) 956 | -10/Mines | Deemed a non-threat by the Exiles lab entrance 956 | -10/Mines | Discovered new exit (range 5) 1019 | -10/Mines | Assisted by bots powering up and referring to "LRC-V3" 1212 | -10/Mines | Entered Exiles 1212 | -10/Exiles | Accompanied by 3 allies 1257 | -10/Exiles | Met 8R-AWN 1283 | -10/Exiles | Met EX-HEX 1328 | -10/Exiles | Met EX-BIN 1347 | -10/Exiles | Aligned with FarCom system 1349 | -10/Exiles | Given EX-Vault access code 1385 | -10/Exiles | Opened EX-Vault 1394 | -10/Exiles | Found Modified TNC 1441 | -10/Exiles | Warned to stay clear of 0b10 Research branches 1452 | -10/Exiles | Exiles lab attacked by MAIN.C 1491 | -10/Exiles | Learned location of Zion (-7) 1531 | -10/Exiles | Discovered new exit (range 14) 1547 | -10/Exiles | Left Exiles lab with Modified TNC 1547 | -10/Exiles | Entered Mines 1547 | -9/Mines | Accompanied by 3 allies 1770 | -9/Mines | Discovered new exit (range 12) 2109 | -9/Mines | Entered Materials 2109 | -8/Materials | Accompanied by 4 allies 2109 | -8/Materials | Evolved 4 slots: Propulsion x1, Utility x2, Weapon x1 2110 | -8/Materials | Identified exit to Storage 2114 | -8/Materials | Led the pair of lost Derelicts to an unsafe place 2465 | -8/Materials | Build established: Skirmisher 2607 | -8/Materials | Discovered new exit (range 10) 3150 | -8/Materials | Discovered new exit (range 3) 3288 | -8/Materials | Identified exit to Garrison 3298 | -8/Materials | Entered Garrison 3596 | -8/Garrison | Triggered checkpoint 3640 | -8/Garrison | Triggered checkpoint 3648 | -8/Garrison | Discovered new exit (range 11) 3733 | -8/Garrison | Garrison Relay disabled 3745 | -8/Garrison | Garrison Relay disabled 3777 | -8/Garrison | Build established: Mutant 3807 | -8/Garrison | Triggered checkpoint 3924 | -8/Garrison | Triggered checkpoint 3969 | -8/Garrison | Discovered new exit (range 8) 4057 | -8/Garrison | Triggered checkpoint 4083 | -8/Garrison | Garrison Relay disabled 4210 | -8/Garrison | Discovered new exit (range 15) 4266 | -8/Garrison | Triggered checkpoint 4295 | -8/Garrison | Installed Relay Interface Framework 4320 | -8/Garrison | Garrison Relay disabled 4336 | -8/Garrison | Triggered checkpoint 4353 | -8/Garrison | Discovered new exit (range 7) 4359 | -8/Garrison | Entered Materials 4699 | -8/Materials | Discovered exit to Storage (range 14) 4759 | -8/Materials | First assault squad dispatched 4833 | -8/Materials | Destroyed 9 combat bots 5623 | -8/Materials | Identified exit to Garrison 5712 | -8/Materials | Discovered exit to Storage (range 15) 5732 | -8/Materials | Entered Garrison 5765 | -8/Garrison | Learned Factory security intel 5796 | -8/Garrison | Triggered checkpoint 5821 | -8/Garrison | Garrison Relay disabled 5913 | -8/Garrison | Triggered checkpoint 6049 | -8/Garrison | Expanded RIF knowledge: Patrol Navigation 6088 | -8/Garrison | Triggered checkpoint 6094 | -8/Garrison | Garrison Relay disabled 6127 | -8/Garrison | Discovered new exit (range 10) 6401 | -8/Garrison | Discovered new exit (range 13) 6532 | -8/Garrison | Triggered checkpoint 6680 | -8/Garrison | Garrison Relay disabled 6735 | -8/Garrison | Entered Factory 6735 | -7/Factory | Accompanied by 3 allies 6735 | -7/Factory | Evolved 2 slots: Utility x2 6959 | -7/Factory | Build established: Bothacker-Mutant 7369 | -7/Factory | Garrison activated, responded to threat 7473 | -7/Factory | Identified exit to Garrison 7518 | -7/Factory | Build established: Mutant 7521 | -7/Factory | Entered Garrison 7654 | -7/Garrison | Triggered checkpoint 7722 | -7/Garrison | Triggered checkpoint 7843 | -7/Garrison | Discovered new exit (range 12) 7985 | -7/Garrison | Triggered checkpoint 8116 | -7/Garrison | Triggered checkpoint 8161 | -7/Garrison | Discovered new exit (range 59) 8161 | -7/Garrison | Discovered new exit (range 26) 8161 | -7/Garrison | Discovered new exit (range 49) 8301 | -7/Garrison | Crushed by falling debris 8341 | -7/Garrison | Expanded RIF knowledge: Program Shield 8431 | -7/Garrison | Entered Factory 8431 | -6/Factory | Evolved 2 slots: Utility x2 9481 | -6/Factory | First assault squad dispatched 9637 | -6/Factory | Build established: Infiltrator-Mutant 9668 | -6/Factory | Sucked down chute 9668 | -6/Factory | Entered Waste 9681 | -6/Waste | Spotted C-40 Crusher 9702 | -6/Waste | Spotted C-40 Crusher 9722 | -6/Waste | Spotted C-40 Crusher 9742 | -6/Waste | Warlord forces began an assault 9745 | -6/Waste | Allies destroyed C-40 Crusher 9748 | -6/Waste | Allies destroyed C-40 Crusher 9852 | -6/Waste | Spotted C-40 Crusher 9854 | -6/Waste | Allies destroyed C-40 Crusher 9869 | -6/Waste | Spotted C-40 Crusher 9873 | -6/Waste | Allies destroyed C-40 Crusher 9880 | -6/Waste | Allies destroyed C-40 Crusher 10073 | -6/Waste | Discovered new exit (range 13) 10211 | -6/Waste | Entered Factory 10211 | -6/Factory | Accompanied by 13 allies 10540 | -6/Factory | Identified exit to Garrison 10551 | -6/Factory | Entered Garrison 10551 | -6/Garrison | Accompanied by 10 allies 10588 | -6/Garrison | Triggered checkpoint 10634 | -6/Garrison | Discovered new exit (range 5) 10736 | -6/Garrison | Triggered checkpoint 10813 | -6/Garrison | Garrison Relay disabled 10832 | -6/Garrison | Triggered checkpoint 10922 | -6/Garrison | Triggered checkpoint 10980 | -6/Garrison | Destroyed 7 combat bots 10994 | -6/Garrison | Triggered checkpoint 11280 | -6/Garrison | Triggered checkpoint 11411 | -6/Garrison | Discovered new exit (range 10) 11462 | -6/Garrison | Triggered checkpoint 11636 | -6/Garrison | Triggered checkpoint 11651 | -6/Garrison | Build established: Bothacker-Mutant 11728 | -6/Garrison | Triggered checkpoint 11784 | -6/Garrison | Expanded RIF knowledge: Autoassimilate 11794 | -6/Garrison | Garrison Relay disabled 11881 | -6/Garrison | Discovered new exit (range 11) 12054 | -6/Garrison | Triggered checkpoint 12080 | -6/Garrison | Discovered new exit (range 14) 12180 | -6/Garrison | Triggered checkpoint 12183 | -6/Garrison | Garrison Relay disabled 12287 | -6/Garrison | Entered Factory 12287 | -5/Factory | Accompanied by 2 allies 12287 | -5/Factory | Evolved 2 slots: Power x1, Utility x1 12587 | -5/Factory | First assault squad dispatched 12682 | -5/Factory | Identified exit to Garrison 12682 | -5/Factory | Entered Garrison 12741 | -5/Garrison | Triggered checkpoint 12766 | -5/Garrison | Garrison Relay disabled 12898 | -5/Garrison | Triggered checkpoint 12990 | -5/Garrison | Triggered checkpoint 13036 | -5/Garrison | Destroyed 10 combat bots 13118 | -5/Garrison | Discovered new exit (range 10) 13188 | -5/Garrison | Triggered checkpoint 13230 | -5/Garrison | Garrison Relay disabled 13509 | -5/Garrison | Build established: Botlord-Mutant 13608 | -5/Garrison | Found embedded Infiltrators 13657 | -5/Garrison | Discovered new exit (range 12) 13700 | -5/Garrison | Expanded RIF knowledge: Code Merge 13718 | -5/Garrison | Triggered checkpoint 13762 | -5/Garrison | Garrison Relay disabled 13783 | -5/Garrison | Spotted Executioner 13783 | -5/Garrison | Spotted Executioner 13817 | -5/Garrison | Destroyed Executioner 13827 | -5/Garrison | Destroyed Executioner 13852 | -5/Garrison | Found Prototype Device 13852 | -5/Garrison | Identified Adv. Kinecellerator 14105 | -5/Garrison | Build established: Botlord-Gunner 14328 | -5/Garrison | Spotted B-75 Beast 14460 | -5/Garrison | Discovered new exit (range 8) 14544 | -5/Garrison | Build established: Botlord-Mutant 14584 | -5/Garrison | Garrison Relay disabled 14618 | -5/Garrison | Entered Factory 14618 | -4/Factory | Evolved 2 slots: Propulsion x1, Utility x1 14710 | -4/Factory | Found Prototype Processor 14710 | -4/Factory | Identified Exp. Signal Interpreter 14895 | -4/Factory | First assault squad dispatched 15442 | -4/Factory | Sucked down chute 15442 | -4/Factory | Entered Waste 15445 | -4/Waste | 1 allies followed down the chute 15453 | -4/Waste | Spotted C-40 Crusher 15453 | -4/Waste | Spotted C-40 Crusher 15457 | -4/Waste | EMP discharged 15483 | -4/Waste | Spotted C-40 Crusher 15491 | -4/Waste | Spotted C-40 Crusher 15496 | -4/Waste | Spotted C-40 Crusher 15506 | -4/Waste | Crushed by Compactor (1 part destroyed, 2 dropped) 15517 | -4/Waste | Crushed by Compactor (0 parts destroyed, 1 dropped) 15540 | -4/Waste | Spotted C-40 Crusher 15557 | -4/Waste | EMP discharged 15557 | -4/Waste | System corruption reached 10% 15562 | -4/Waste | Discovered new exit (range 16) 15586 | -4/Waste | Entered Factory 15782 | -4/Factory | Discovered new exit (range 11) 16473 | -4/Factory | Entered Upper Caves 16756 | -4/Upper Caves | Discovered new exit (range 12) 16773 | -4/Upper Caves | Entered another Upper Caves area 16876 | -4/Upper Caves | Lost 3 parts (2u1w) 17016 | -4/Upper Caves | Attracted the attention of an 0b10 checkpoint 17126 | -4/Upper Caves | Build established: Mutant 17159 | -4/Upper Caves | Discovered new exit (range 7) 17168 | -4/Upper Caves | Entered Warlord 17213 | -4/Warlord | System corruption cleaned by Quarantine Array 17218 | -4/Warlord | RIF detected upon attempting to enter Warlord's base 17218 | -4/Warlord | Attacked by Warlord forces 17252 | -4/Warlord | Discovered new exit (range 12) 17266 | -4/Warlord | Entered Proximity Caves 17286 | -3/Proximity Caves | Attracted the attention of an 0b10 checkpoint 17396 | -3/Proximity Caves | Spotted B-86 Titan 17914 | -3/Proximity Caves | Released all parts (11) 17943 | -3/Proximity Caves | Lost 4 parts (2p1u1w) 17975 | -3/Proximity Caves | Discovered new exit (range 5) 17982 | -3/Proximity Caves | Entered Research 17982 | -3/Research | Evolved 2 slots: Propulsion x2 18108 | -3/Research | Self-destructed Last Messages --------------- 18085_ Slug penetrates Wall. 18091_ Slug penetrates Scanalyzer. 18092_ Slammed into H-77 Assassin. 18094_ Slug penetrates Wall. 18094_ Slug penetrates H-77 Assassin. 18094_ Slug penetrates Scanalyzer. 18094_ Slammed into H-77 Assassin. 18098_ Scanalyzer disabled. 18098_ Penetrated by Slug. 18098_ Slug penetrates Meson Extractor. 18098_ Penetrated by Slug. 18099_ Slammed into H-77 Assassin. 18100_ Penetrated by Slug. 18101_ Slug penetrates Wall. 18101_ Penetrated by Slug. 18101_ Slug penetrates Wall. 18102_ Slammed into H-77 Assassin. 18104_ Penetrated by Slug. 18105_ Slammed into H-77 Assassin. 18108_ Slug penetrates H-77 Assassin. Map ----- +----------------------------------------------------+ | ?????????????????????????????????????????????????? | | ?????????????????????????????????????????????????? | | ?????????????????????????????????????????????????? | | ?????????????????????????????????????????????????? | | ?????????????????????????????????????????????????? | | ?????????????????????????????????????????????????? | | ?????????????????????????????????????????????????? | | ?????????????????????????????????????????????????? | | ?????????????????????????????????????????????????? | | ?????????????????????????????????????????????????? | | ?????????????????????????????????????????????????? | | ?????????????????????????????????????????????????? | | ?????????????????????????????????????????????????? | | ?????????????????????????????????????????????????? | | ######???????????????????????????????????????????? | | #???????????????????????????????????????????? | | #???????????????????????????????????????????? | | #???????????????????????????????????????????? | | #????????##############?????????????????????? | | #????????# #?????????????????????? | | #????????# #?????????????????????? | | #????????# """ """ #?????????????????????? | | ############### """ """ #?????????????????????? | | + """ """% #?????????????????????? | | # %%%#?????????????????????? | | + @ #?????????????????????? | | # """ h h#??????w??????????????? | | ####### # """S" #?????????????????????? | | ??????# # """"" #?????????????????????? | | ??????# + YY #?????????????????????? | | ??????#+####### #???????????Y?????????? | | ??????????????###########+##?????????????????????? | | #######?????????????????# #??????????????????????? | | #?????????????????# #??????????????????????? | | #????????????????? ??????????????????????? | | #????????????????? ??????????????????????? | | #????????????????? ??????????????????????? | | #?????????????????# #??????????????????????? | | #?????????????????# #??????????????????????? | | #?????????????????# #??????????????????????? | | #?????????????????? ???????????????????????? | | #?????????????????? ???????????????????????? | | #?????????????????? ???????????????????????? | | #?????????????????? ???????????????????????? | | #?????????????????? ???????????????????????? | | #######??????????????????+???????????????????????? | | ?????????????????????????????????????????????????? | | ?????????????????????????????????????????????????? | | ?????????????????????????????????????????????????? | | ?????????????????????????????????????????????????? | +----------------------------------------------------+ Best States ------------- Heat Dissipation 74 Energy Generation 37 Energy Capacity 1290 Matter Stores 550 Matter Capacity 550 Sight Range 23 Robot Scan Range 18 Terrain Scan Range 16 Terrain Scan Density 10 Jamming Range 14 Corruption Block 8 Armor Coverage 675 Evasion (%) 50 Targeting Accuracy 8 Recoil Reduction 4 Kinecelleration 50 Offensive Hacking 10 Defensive Hacking 10 Relay Coupler Types 6 Relay Coupler Value 135 Item Schematics ----------------- Huge Storage Unit | -9/Mines | Hacked Hcp. Storage Unit | -8/Materials | Scanalyzed Arm. Wheel | -8/Materials | Scanalyzed Arm. Huge Wheel | -8/Materials | Scanalyzed Robot Schematics ------------------ None Fabricated ------------ Nothing Alien Tech Used ----------------- None Achievements -------------- None Challenges ------------ None Game ------ Seed GrapheneLightpackPropulsion Manual? 0 Play Time 04:24:28 Cumulative 493.2 hours Start 2023.09.07 @ 21:33:49 End 2023.09.09 @ 00:16:53 Sessions 9 Manual Loads 0 Difficulty Rogue Special Mode None Game No. 114 Rogue 75 Adventurer 4 Explorer 35 Win Type - Total 37 Types 17/6/4/2/2/3/2/0/1 Lore% 86 Gallery% 86 Achievement% 89 Wizard Run 0 Options --------- ASCII 0 Keyboard 1 Movement Vi Keybinds 0 Fullscreen 1 Font 24/Smallcaps Map View 76x50 Tactical HUD 1 Map Filters NONE Filters NONE Steam 1 RUN: ced19783-506c-4fc3-84bf-700ecde922ba